{"text_format":"1","workbook":"xlsx","n_sheets":2,"sheets":["Pasiūlymas","Subtiekėjai ir priedai"],"not_rendered":{"charts":0,"images":0,"macros":1,"external_links":0,"defined_names":0,"comments":0,"pivot_tables":0},"unopened":[],"bounds":{"document_bytes":16777216,"sheet_cells":100000,"rows_first":2000,"rows_last":500,"rows_between":2000,"halvings":0,"cell_chars":16384,"cell_head_chars":4096},"cells_cut":0,"cells_raw":0,"read":"whole","date_system":"1900"}

{"sheet":"Pasiūlymas","index":0,"n_rows":395,"n_cols":7,"rows_kept":395,"cut":false,"hidden":false,"merged":[[29,0,29,2],[29,3,29,5],[11,0,11,1],[11,2,11,5],[12,0,12,1],[12,2,12,5],[13,0,13,1],[13,2,13,5],[14,0,14,1],[14,2,14,5],[15,0,15,1],[15,2,15,5],[16,0,16,1],[16,2,16,5],[17,0,17,1],[17,2,17,5],[18,0,18,1],[18,2,18,5],[23,0,23,5],[19,0,19,1],[20,0,20,1],[19,2,19,5],[20,2,20,5],[22,0,22,5],[27,0,27,5],[28,0,28,5],[24,0,24,5],[25,0,25,5],[26,0,26,5]]}
[]
["PIRKIMO SĄLYGŲ PRIEDAS \"PASIŪLYMO FORMA\""]
[]
["IŠORINĖ TARPLABORATORINĖ (TARPTAUTINĖ) TYRIMŲ KONTROLĖ "]
[]
["Kam:","VšĮ LSMU Kauno ligoninė"]
[]
["Data:","2023 03 21"]
["Nr.:","03-21/01"]
["Vieta:","Vilnius"]
[]
["Tiekėjo pavadinimas / Ūkio subjektų grupės nariai:",null,"UAB ,,Interautomatika\""]
["Tiekėjo kodas (-ai):",null,300002253]
["Tiekėjo adresas (-ai):",null,"Spaudos g. 6, LT-05131 Vilnius"]
["Tiekėjo PVM mokėtojo kodas(-ai):",null,"LT140309219"]
["Tiekėjo / Ūkio subjektų grupės atsakingo partnerio sąskaitos numeris, banko pavadinimas ir banko kodas (-ai):",null,"A/S LT 5270 4406 0003 9493 90\nAB SEB bankas\nBanko kodas 70440"]
["Asmens atsakingo už pasiūlymą vardas, pavardė:",null,"Produktų grupės vadovė Alla Zolfaghari"]
["Asmens atsakingo už pasiūlymą telefono numeris, el. pašto adresas:",null,"tel. +370 656 36486, el.p. alla@interautomatika.com"]
["Tiekėjo / Ūkio subjektų grupės, laimėjimo atveju, pasirašančio sutartį asmens vardas, pavardė, pareigos:",null,"Direktorius Andrius Rubčinskas"]
["Tiekėjo / Ūkio subjektų grupės, laimėjimo atveju, už sutarties vykdymą atsakingo asmens vardas, pavardė, telefono numeris, elektroninio pašto adresas:",null,"Produktų grupės vadovė Alla Zolfaghari, tel. +370 656 36486, el.p. alla@interautomatika.com\t\t\t"]
["(1) Tiekėjo / Ūkio subjektų grupės narių, (2) ūkio subjektų, kurių pajėgumais remiamasi, ir (3) jei pašalinimo pagrindai taikomi visiems subtiekėjams - subtiekėjų, kolegialaus priežiūros organo (Stebėtojų tarybos) ir (ar) kolegialaus valdymo organo (Valdybos) narių sąrašas (jei sudaryta) ir (ar) asmuo, kuriam suteikti VPĮ 46 str. 2 d. 2 p. numatyti įgaliojimai",null,"--",null,null,null,{"$f":"IF((SUMPRODUCT(--(C21=\"\"))>0), \"Privaloma užpildyti, kai taikomi pašalinimo pagrindai\", \"\")","v":""}]
[]
["Tiekėjo patvirtinimai:"]
["1. Šiuo pasiūlymu pažymime, kad sutinkame su visomi pirkimo sąlygomis, nustatytomis:"]
["1.1. viešojo pirkimo dokumentuose"]
["1.2. kituose pirkimo dokumentuose (jų paaiškinimuose, papildymuose)."]
["2. Patvirtiname, kad informacija ir duomenys, pateikti pasiūlyme, yra teisingi ir apima viską, ko reikia tinkamam sutarties įvykdymui"]
["3. Patvirtiname, kad jei pasiūlyme nenurodyti kolegialaus priežiūros/valdymo organų nariai, šie organai juridiniuose asmenyse nėra sudaryti (taikoma, kai pirkimo dokumentuose nustatyti pašalinimo pagrindai)."]
["4. Pasiūlymas galioja iki termino, nustatyto pirkimo dokumentuose."]
["5. Tais atvejais, kai pagal galiojančius teisės aktus tiekėjui nereikia mokėti PVM, jis nurodo priežastis, dėl kurių PVM nemoka:"]
["6. Tiekėjas kainas pateikia, nurodydamas ne daugiau skaičių po kablelio, nei leidžiama pirkimo dokumentuose."]
["1. DALIS","IŠORINĖ KOKYBĖS KONTROLĖ BIOCHEMINIAMS TYRIMAMS"]
[]
["Tiekėjo pasiūlymas:"]
["Nr.","Pavadinimas","Maksimali apimtis","Mato vienetas","Vieneto įkainis be PVM, Eur","Suma be PVM, Eur"]
["1.","Išorinė kokybės kontrolė biocheminiams tyrimams"]
["1.1.","Išorinė kokybės kontrolė biocheminiams tyrimams",168,"vnt.",28.39,{"$f":"IF(ISBLANK(E37),\"\", PRODUCT(C37,E37))","v":4769.5200000000004}]
["1.1.1.","galimybė registruoti 5 analizatorius"]
["1.1.2.","Nemokamas dalyvio serifikatas"]
["1.1.3.","ne mažiau kaip 2 mėginiai per metus"]
["1.1.4.","Analitės: albuminas, kalcis, chloras, bendras cholesterolis, kreatinkinazė, kreatininas, gliukozė, HDL , geležis, laktatai, LDH, kalis, baltymas, natris, trigliceridai, šlapimo rūgštis, ŠF, ALT, AST, pankreatinė amilazė, bendras bilirubinas, GGT, magnis, litis, šlapalas, fosforas,amilazė, tiesioginis bilirubinas"]
[null,null,null,null,"Suma be PVM",{"$f":"IF((COUNT(C37:C41)<>COUNT(F37:F41)),\"\", SUM(F37:F41))","v":4769.5200000000004},{"$f":"IF((COUNT(C37:C41)<>COUNT(F37:F41)),\"Neužpildytos visų objektų kainos\", \"\")","v":""}]
[null,null,"Taikomas PVM dydis (%)",21,"PVM suma",{"$f":"IF(OR(F42=\"\",D43=\"\"),\"\", PRODUCT(D43,F42)/100)","v":1001.5992000000001},{"$f":"IF(D43=\"\", \"Nurodykite taikomą PVM dydį\", \"\")","v":""}]
[null,null,null,null,"Suma su PVM",{"$f":"IF(ISBLANK(F43), \"\", SUM(F42:F43))","v":5771.119200000001}]
[]
[]
[]
["2. DALIS","IŠORINĖ KOKYBĖS KONTROLĖ BIOCHEMINIAMS-IMUNOLOGINIAMS TYRIMAMS"]
[]
["Tiekėjo pasiūlymas:"]
["Nr.","Pavadinimas","Maksimali apimtis","Mato vienetas","Vieneto įkainis be PVM, Eur","Suma be PVM, Eur"]
["2.","išorinė kokybės kontrolė biocheminiams-imunologiniams tyrimams"]
["2.1.","išorinė kokybės kontrolė biocheminiams-imunologiniams tyrimams",90,"vnt.",23.89,{"$f":"IF(ISBLANK(E53),\"\", PRODUCT(C53,E53))","v":2150.1}]
["2.1.1.","galimybė registruoti 5 analizatorius"]
["2.1.2.","Nemokamas dalyvio serifikatas"]
["2.1.3.","ne mažiau kaip 2 mėginiai per metus"]
["2.1.4.","Analitės:AFP, Ca-125, Ca-15-3, Ca19-9, CEA, feritinas, folinė rūgštis, IgE, PSA, FT3, FT4, TSH, vit.B12, vit.D, PTH, vankomicinas"]
[null,null,null,null,"Suma be PVM",{"$f":"IF((COUNT(C53:C57)<>COUNT(F53:F57)),\"\", SUM(F53:F57))","v":2150.1},{"$f":"IF((COUNT(C53:C57)<>COUNT(F53:F57)),\"Neužpildytos visų objektų kainos\", \"\")","v":""}]
[null,null,"Taikomas PVM dydis (%)",21,"PVM suma",{"$f":"IF(OR(F58=\"\",D59=\"\"),\"\", PRODUCT(D59,F58)/100)","v":451.52099999999996},{"$f":"IF(D59=\"\", \"Nurodykite taikomą PVM dydį\", \"\")","v":""}]
[null,null,null,null,"Suma su PVM",{"$f":"IF(ISBLANK(F59), \"\", SUM(F58:F59))","v":2601.6210000000001}]
[]
[]
[]
["3. DALIS","IŠORINĖ KOKYBĖS KONTROLĖ AUTOMATIZUOTAM KRAUJO TYRIMUI 5 DIF. HEMATOLOGINIU ANALIZATORIUMI"]
[]
["Tiekėjo pasiūlymas:"]
["Nr.","Pavadinimas","Maksimali apimtis","Mato vienetas","Vieneto įkainis be PVM, Eur","Suma be PVM, Eur"]
["3.","išorinė kokybės kontrolė automatizuotam kraujo tyrimui 5 dif. hematologiniu analizatoriumi"]
["3.1.","išorinė kokybės kontrolė automatizuotam kraujo tyrimui 5 dif. hematologiniu analizatoriumi",6,"kompl.",102,{"$f":"IF(ISBLANK(E69),\"\", PRODUCT(C69,E69))","v":612}]
["3.1.1.","galimybė registruoti 5 analizatorius"]
["3.1.2.","Nemokamas dalyvio serifikatas"]
["3.1.3.","ne mažiau kaip 2 mėginiai per metus"]
["3.1.4.","parametrai: WBC, RBC, HGB, HCT, MCV, MCH, MCHC, RDW-CV, RDW-SD, PLT"]
[null,null,null,null,"Suma be PVM",{"$f":"IF((COUNT(C69:C73)<>COUNT(F69:F73)),\"\", SUM(F69:F73))","v":612},{"$f":"IF((COUNT(C69:C73)<>COUNT(F69:F73)),\"Neužpildytos visų objektų kainos\", \"\")","v":""}]
[null,null,"Taikomas PVM dydis (%)",21,"PVM suma",{"$f":"IF(OR(F74=\"\",D75=\"\"),\"\", PRODUCT(D75,F74)/100)","v":128.52000000000001},{"$f":"IF(D75=\"\", \"Nurodykite taikomą PVM dydį\", \"\")","v":""}]
[null,null,null,null,"Suma su PVM",{"$f":"IF(ISBLANK(F75), \"\", SUM(F74:F75))","v":740.52}]
[]
[]
[]
["4. DALIS","IŠORINĖ KOKYBĖS KONTROLĖ KREŠĖJIMO TYRIMAMS"]
[]
["Tiekėjo pasiūlymas:"]
["Nr.","Pavadinimas","Maksimali apimtis","Mato vienetas","Vieneto įkainis be PVM, Eur","Suma be PVM, Eur"]
["4.","išorinė kokybės kontrolė krešėjimo tyrimams"]
["4.1.","išorinė kokybės kontrolė krešėjimo tyrimams",24,"vnt.",95,{"$f":"IF(ISBLANK(E85),\"\", PRODUCT(C85,E85))","v":2280}]
["4.1.1.","analizatoriai 3."]
["4.1.2.","Nemokamas dalyvio serifikatas"]
["4.1.3.","analitės: SPA (iNR), DATL, fibrinogenas, D-dimerai"]
["4.1.4.","ne mažiau kaip 2 mėginiai per metus"]
[null,null,null,null,"Suma be PVM",{"$f":"IF((COUNT(C85:C89)<>COUNT(F85:F89)),\"\", SUM(F85:F89))","v":2280},{"$f":"IF((COUNT(C85:C89)<>COUNT(F85:F89)),\"Neužpildytos visų objektų kainos\", \"\")","v":""}]
[null,null,"Taikomas PVM dydis (%)",21,"PVM suma",{"$f":"IF(OR(F90=\"\",D91=\"\"),\"\", PRODUCT(D91,F90)/100)","v":478.8},{"$f":"IF(D91=\"\", \"Nurodykite taikomą PVM dydį\", \"\")","v":""}]
[null,null,null,null,"Suma su PVM",{"$f":"IF(ISBLANK(F91), \"\", SUM(F90:F91))","v":2758.8}]
[]
[]
[]
["5. DALIS","IŠORINĖ KOKYBĖS KONTROLĖ JUOSTELINIAM ŠLAPIMO TYRIMUI"]
[]
["Tiekėjo pasiūlymas:"]
["Nr.","Pavadinimas","Maksimali apimtis","Mato vienetas","Vieneto įkainis be PVM, Eur","Suma be PVM, Eur"]
["5.","išorinė kokybės kontrolė juosteliniam šlapimo tyrimui"]
["5.1.","išorinė kokybės kontrolė juosteliniam šlapimo tyrimui",12,"kompl.",142,{"$f":"IF(ISBLANK(E101),\"\", PRODUCT(C101,E101))","v":1704}]
["5.1.1.","ne mažiau kaip 2 mėginiai per metus 4 analizatoriams"]
["5.1.2.","Nemokamas dalyvio serifikatas"]
[null,null,null,null,"Suma be PVM",{"$f":"IF((COUNT(C101:C103)<>COUNT(F101:F103)),\"\", SUM(F101:F103))","v":1704},{"$f":"IF((COUNT(C101:C103)<>COUNT(F101:F103)),\"Neužpildytos visų objektų kainos\", \"\")","v":""}]
[null,null,"Taikomas PVM dydis (%)",21,"PVM suma",{"$f":"IF(OR(F104=\"\",D105=\"\"),\"\", PRODUCT(D105,F104)/100)","v":357.84},{"$f":"IF(D105=\"\", \"Nurodykite taikomą PVM dydį\", \"\")","v":""}]
[null,null,null,null,"Suma su PVM",{"$f":"IF(ISBLANK(F105), \"\", SUM(F104:F105))","v":2061.84}]
[]
[]
[]
["6. DALIS","IŠORINĖ KOKYBĖS KONTROLĖ ŠLAPIMO NUOSĖDŲ MIKROSKOPIJAI"]
[]
["Tiekėjo pasiūlymas:"]
["Nr.","Pavadinimas","Maksimali apimtis","Mato vienetas","Vieneto įkainis be PVM, Eur","Suma be PVM, Eur"]
["6.","išorinė kokybės kontrolė šlapimo nuosėdų mikroskopijai"]
["6.1.","išorinė kokybės kontrolė šlapimo nuosėdų mikroskopijai",24,"vnt.",62,{"$f":"IF(ISBLANK(E115),\"\", PRODUCT(C115,E115))","v":1488}]
["6.1.1.","Nemokamas dalyvio serifikatas"]
["6.1.2.","ne mažiau kaip 2 mėginiai per metus 4 veiklos adresais"]
[null,null,null,null,"Suma be PVM",{"$f":"IF((COUNT(C115:C117)<>COUNT(F115:F117)),\"\", SUM(F115:F117))","v":1488},{"$f":"IF((COUNT(C115:C117)<>COUNT(F115:F117)),\"Neužpildytos visų objektų kainos\", \"\")","v":""}]
[null,null,"Taikomas PVM dydis (%)",21,"PVM suma",{"$f":"IF(OR(F118=\"\",D119=\"\"),\"\", PRODUCT(D119,F118)/100)","v":312.48},{"$f":"IF(D119=\"\", \"Nurodykite taikomą PVM dydį\", \"\")","v":""}]
[null,null,null,null,"Suma su PVM",{"$f":"IF(ISBLANK(F119), \"\", SUM(F118:F119))","v":1800.48}]
[]
[]
[]
["7. DALIS","IŠORINĖ KOKYBĖS KONTROLĖ SMEGENŲ SKYSČIO BIOCHEMINIAMS TYRIMAMS"]
[]
["Tiekėjo pasiūlymas:"]
["Nr.","Pavadinimas","Maksimali apimtis","Mato vienetas","Vieneto įkainis be PVM, Eur","Suma be PVM, Eur"]
["7.","išorinė kokybės kontrolė smegenų skysčio biocheminiams tyrimams"]
["7.1.","išorinė kokybės kontrolė smegenų skysčio biocheminiams tyrimams",12,"kompl.",139,{"$f":"IF(ISBLANK(E129),\"\", PRODUCT(C129,E129))","v":1668}]
["7.1.1.","ne mažiau kaip 2 mėginių komplektai  per metus 2 veiklos adresais"]
["7.1.2.","Nemokamas dalyvio serifikatas"]
[null,null,null,null,"Suma be PVM",{"$f":"IF((COUNT(C129:C131)<>COUNT(F129:F131)),\"\", SUM(F129:F131))","v":1668},{"$f":"IF((COUNT(C129:C131)<>COUNT(F129:F131)),\"Neužpildytos visų objektų kainos\", \"\")","v":""}]
[null,null,"Taikomas PVM dydis (%)",21,"PVM suma",{"$f":"IF(OR(F132=\"\",D133=\"\"),\"\", PRODUCT(D133,F132)/100)","v":350.28},{"$f":"IF(D133=\"\", \"Nurodykite taikomą PVM dydį\", \"\")","v":""}]
[null,null,null,null,"Suma su PVM",{"$f":"IF(ISBLANK(F133), \"\", SUM(F132:F133))","v":2018.28}]
[]
[]
[]
["8. DALIS","IŠORINĖ KOKYBĖS KONTROLĖ HEMATOLOGINIŲ TEPINĖLIŲ MIKROSKOPIJAI"]
[]
["Tiekėjo pasiūlymas:"]
["Nr.","Pavadinimas","Maksimali apimtis","Mato vienetas","Vieneto įkainis be PVM, Eur","Suma be PVM, Eur"]
["8.","išorinė kokybės kontrolė hematologinių tepinėlių mikroskopijai"]
["8.1.","išorinė kokybės kontrolė hematologinių tepinėlių mikroskopijai",18,"vnt.",109,{"$f":"IF(ISBLANK(E143),\"\", PRODUCT(C143,E143))","v":1962}]
["8.1.1.","ne mažiau kaip 2 mėginiai per metus 3 veiklos adresais"]
["8.1.2.","Nemokamas dalyvio serifikatas"]
[null,null,null,null,"Suma be PVM",{"$f":"IF((COUNT(C143:C145)<>COUNT(F143:F145)),\"\", SUM(F143:F145))","v":1962},{"$f":"IF((COUNT(C143:C145)<>COUNT(F143:F145)),\"Neužpildytos visų objektų kainos\", \"\")","v":""}]
[null,null,"Taikomas PVM dydis (%)",21,"PVM suma",{"$f":"IF(OR(F146=\"\",D147=\"\"),\"\", PRODUCT(D147,F146)/100)","v":412.02},{"$f":"IF(D147=\"\", \"Nurodykite taikomą PVM dydį\", \"\")","v":""}]
[null,null,null,null,"Suma su PVM",{"$f":"IF(ISBLANK(F147), \"\", SUM(F146:F147))","v":2374.02}]
[]
[]
[]
["9. DALIS","IŠORINĖ KOKYBĖS KONTROLĖ KRAUJO DUJOMS"]
[]
["Tiekėjo pasiūlymas:"]
["Nr.","Pavadinimas","Maksimali apimtis","Mato vienetas","Vieneto įkainis be PVM, Eur","Suma be PVM, Eur"]
["9.","išorinė kokybės kontrolė kraujo dujoms"]
["9.1.","išorinė kokybės kontrolė kraujo dujoms",20,"vnt.",122.4,{"$f":"IF(ISBLANK(E157),\"\", PRODUCT(C157,E157))","v":2448}]
["9.1.1.","4 analizatoriai"]
["9.1.2.","Nemokamas dalyvio serifikatas"]
["9.1.3.","ne mažiau kaip 2 mėginiai per metus"]
[null,null,null,null,"Suma be PVM",{"$f":"IF((COUNT(C157:C160)<>COUNT(F157:F160)),\"\", SUM(F157:F160))","v":2448},{"$f":"IF((COUNT(C157:C160)<>COUNT(F157:F160)),\"Neužpildytos visų objektų kainos\", \"\")","v":""}]
[null,null,"Taikomas PVM dydis (%)",21,"PVM suma",{"$f":"IF(OR(F161=\"\",D162=\"\"),\"\", PRODUCT(D162,F161)/100)","v":514.08000000000004},{"$f":"IF(D162=\"\", \"Nurodykite taikomą PVM dydį\", \"\")","v":""}]
[null,null,null,null,"Suma su PVM",{"$f":"IF(ISBLANK(F162), \"\", SUM(F161:F162))","v":2962.08}]
[]
[]
[]
["10. DALIS","IŠORINĖ KOKYBĖS KONTROLĖ MIOKARDO PAŽEIDIMO ŽYMENIMS"]
[]
["Tiekėjo pasiūlymas:"]
["Nr.","Pavadinimas","Maksimali apimtis","Mato vienetas","Vieneto įkainis be PVM, Eur","Suma be PVM, Eur"]
["10.","išorinė kokybės kontrolė miokardo pažeidimo žymenims"]
["10.1.","išorinė kokybės kontrolė miokardo pažeidimo žymenims",60,"vnt.",188,{"$f":"IF(ISBLANK(E172),\"\", PRODUCT(C172,E172))","v":11280}]
["10.1.1.","NT-proBNP (2 analizatoriai), CRB (4 analizatoriai) CK-MB (1analizatoroius), Troponinas T-hs 1 analizatorius, I-hs 2 analizatoriai)"]
["10.1.2.","Nemokamas dalyvio serifikatas"]
["10.1.3.","ne mažiau kaip 2 mėginiai per metus"]
[null,null,null,null,"Suma be PVM",{"$f":"IF((COUNT(C172:C175)<>COUNT(F172:F175)),\"\", SUM(F172:F175))","v":11280},{"$f":"IF((COUNT(C172:C175)<>COUNT(F172:F175)),\"Neužpildytos visų objektų kainos\", \"\")","v":""}]
[null,null,"Taikomas PVM dydis (%)",21,"PVM suma",{"$f":"IF(OR(F176=\"\",D177=\"\"),\"\", PRODUCT(D177,F176)/100)","v":2368.8000000000002},{"$f":"IF(D177=\"\", \"Nurodykite taikomą PVM dydį\", \"\")","v":""}]
[null,null,null,null,"Suma su PVM",{"$f":"IF(ISBLANK(F177), \"\", SUM(F176:F177))","v":13648.8}]
[]
[]
[]
["11. DALIS","IŠORINĖ KOKYBĖS KONTROLĖ IMUNOHEMATOLOGIJAI"]
[]
["Tiekėjo pasiūlymas:"]
["Nr.","Pavadinimas","Maksimali apimtis","Mato vienetas","Vieneto įkainis be PVM, Eur","Suma be PVM, Eur"]
["11.","išorinė kokybės kontrolė imunohematologijai"]
["11.1.","išorinė kokybės kontrolė imunohematologijai",12,"kompl.",null,{"$f":"IF(ISBLANK(E187),\"\", PRODUCT(C187,E187))","v":""}]
["11.1.1.","Analitės: kraujo grupė pagal ABO ir RhD nustatymas, antikūnių paieška mir suderinamumas, tiesioginis Kumbsas"]
["11.1.2.","ne mažiau kaip po 2 mėginius per metus 3 veiklos adresais"]
["11.1.3.","Nemokamas dalyvio serifikatas"]
[null,null,null,null,"Suma be PVM",{"$f":"IF((COUNT(C187:C190)<>COUNT(F187:F190)),\"\", SUM(F187:F190))","v":""},{"$f":"IF((COUNT(C187:C190)<>COUNT(F187:F190)),\"Neužpildytos visų objektų kainos\", \"\")","v":"Neužpildytos visų objektų kainos"}]
[null,null,"Taikomas PVM dydis (%)",null,"PVM suma",{"$f":"IF(OR(F191=\"\",D192=\"\"),\"\", PRODUCT(D192,F191)/100)","v":""},{"$f":"IF(D192=\"\", \"Nurodykite taikomą PVM dydį\", \"\")","v":"Nurodykite taikomą PVM dydį"}]
[null,null,null,null,"Suma su PVM",{"$f":"IF(ISBLANK(F192), \"\", SUM(F191:F192))","v":0}]
[]
[]
[]
["12. DALIS","IŠORINĖ KOKYBĖS KONTROLĖ PROKALCITONINO NUSTATYMUI"]
[]
["Tiekėjo pasiūlymas:"]
["Nr.","Pavadinimas","Maksimali apimtis","Mato vienetas","Vieneto įkainis be PVM, Eur","Suma be PVM, Eur"]
["12.","išorinė kokybės kontrolė prokalcitonino nustatymui"]
["12.1.","išorinė kokybės kontrolė prokalcitonino nustatymui",12,"vnt.",108,{"$f":"IF(ISBLANK(E202),\"\", PRODUCT(C202,E202))","v":1296}]
["12.1.1.","2 analizatoriai, ne mažiau kaip 2 mėginiai per metus"]
["12.1.2.","Nemokamas dalyvio serifikatas"]
[null,null,null,null,"Suma be PVM",{"$f":"IF((COUNT(C202:C204)<>COUNT(F202:F204)),\"\", SUM(F202:F204))","v":1296},{"$f":"IF((COUNT(C202:C204)<>COUNT(F202:F204)),\"Neužpildytos visų objektų kainos\", \"\")","v":""}]
[null,null,"Taikomas PVM dydis (%)",21,"PVM suma",{"$f":"IF(OR(F205=\"\",D206=\"\"),\"\", PRODUCT(D206,F205)/100)","v":272.16000000000003},{"$f":"IF(D206=\"\", \"Nurodykite taikomą PVM dydį\", \"\")","v":""}]
[null,null,null,null,"Suma su PVM",{"$f":"IF(ISBLANK(F206), \"\", SUM(F205:F206))","v":1568.16}]
[]
[]
[]
["13. DALIS","IŠORINĖ KOKYBĖS KONTROLĖ ATPO NUSTATYMUI"]
[]
["Tiekėjo pasiūlymas:"]
["Nr.","Pavadinimas","Maksimali apimtis","Mato vienetas","Vieneto įkainis be PVM, Eur","Suma be PVM, Eur"]
["13.","išorinė kokybės kontrolė ATPO nustatymui"]
["13.1.","išorinė kokybės kontrolė ATPO nustatymui",6,"vnt.",104,{"$f":"IF(ISBLANK(E216),\"\", PRODUCT(C216,E216))","v":624}]
["13.1.1.","ne mažiau kaip po 2 mėginius per metus"]
["13.1.2.","Nemokamas dalyvio serifikatas"]
[null,null,null,null,"Suma be PVM",{"$f":"IF((COUNT(C216:C218)<>COUNT(F216:F218)),\"\", SUM(F216:F218))","v":624},{"$f":"IF((COUNT(C216:C218)<>COUNT(F216:F218)),\"Neužpildytos visų objektų kainos\", \"\")","v":""}]
[null,null,"Taikomas PVM dydis (%)",21,"PVM suma",{"$f":"IF(OR(F219=\"\",D220=\"\"),\"\", PRODUCT(D220,F219)/100)","v":131.04},{"$f":"IF(D220=\"\", \"Nurodykite taikomą PVM dydį\", \"\")","v":""}]
[null,null,null,null,"Suma su PVM",{"$f":"IF(ISBLANK(F220), \"\", SUM(F219:F220))","v":755.04}]
[]
[]
[]
["14. DALIS","IŠORINĖ KOKYBĖS KONTROLĖ INFEKCIJŲ SEROLOGINIAMS TYRIMAMS IMUNOFERMENTINIU METODU"]
[]
["Tiekėjo pasiūlymas:"]
["Nr.","Pavadinimas","Maksimali apimtis","Mato vienetas","Vieneto įkainis be PVM, Eur","Suma be PVM, Eur"]
["14.","išorinė kokybės kontrolė infekcijų serologiniams tyrimams imunofermentiniu metodu"]
["14.1.","citomegalo viruso IgM ir IgG",4,"vnt.",122,{"$f":"IF(ISBLANK(E230),\"\", PRODUCT(C230,E230))","v":488}]
["14.1.1.","ne mažiau kaip 2 mėginiai per metus"]
["14.2.","Anti HSV 1/2 IgG ir IgM",4,"vnt.",138,{"$f":"IF(ISBLANK(E232),\"\", PRODUCT(C232,E232))","v":552}]
["14.2.1.","ne mažiau kaip 2 mėginiai per metus"]
["14.3.","Varicella Zoster IgG, IgM",4,"vnt.",129,{"$f":"IF(ISBLANK(E234),\"\", PRODUCT(C234,E234))","v":516}]
["14.3.1.","ne mažiau kaip 2 mėginiai per metus"]
["14.4.","Hepatito A viruso IgM",4,"vnt.",116,{"$f":"IF(ISBLANK(E236),\"\", PRODUCT(C236,E236))","v":464}]
["14.4.1.","ne mažiau kaip 2 mėginiai per metus"]
["14.5.","Hepatito B viruso HBsAg, anti-HBcor, anti-HBc-IgM, HBEAg, anti-HBc, anti-HBg",4,"vnt.",342,{"$f":"IF(ISBLANK(E238),\"\", PRODUCT(C238,E238))","v":1368}]
["14.5.1.","ne mažiau kaip 2 mėginiai per metus"]
["14.6.","Hepatito C antikūnai",4,"vnt.",144,{"$f":"IF(ISBLANK(E240),\"\", PRODUCT(C240,E240))","v":576}]
["14.6.1.","ne mažiau kaip 2 mėginiai per metus"]
["14.7.","ŽIV-1/ŽIV 2 antikūnai",4,"vnt.",167,{"$f":"IF(ISBLANK(E242),\"\", PRODUCT(C242,E242))","v":668}]
["14.7.1.","ne mažiau kaip 2 mėginiai per metus"]
["14.8.","T.gondii IgM, IgG",4,"vnt.",105,{"$f":"IF(ISBLANK(E244),\"\", PRODUCT(C244,E244))","v":420}]
["14.8.1.","ne mažiau kaip 2 mėginiai per metus"]
["14.9.","Treponema pallidum IgM, IgG",4,"vnt.",115,{"$f":"IF(ISBLANK(E246),\"\", PRODUCT(C246,E246))","v":460}]
["14.9.1.","ne mažiau kaip 2 mėginiai per metus"]
["14.10.","Anti-EBV IgM, IgG",4,"vnt.",131,{"$f":"IF(ISBLANK(E248),\"\", PRODUCT(C248,E248))","v":524}]
["14.10.1.","ne mažiau kaip 2 mėginiai per metus"]
["14.11.","Mycoplazma pneumoniae IgM",4,"vnt.",116,{"$f":"IF(ISBLANK(E250),\"\", PRODUCT(C250,E250))","v":464}]
["14.11.1.","ne mažiau kaip 2 mėginiai per metus"]
["14.12.","Clamydia  pneumoniae IgM",4,"vnt.",116,{"$f":"IF(ISBLANK(E252),\"\", PRODUCT(C252,E252))","v":464}]
["14.12.1.","ne mažiau kaip 2 mėginiai per metus"]
["14.13.","Boreliozės IgM, IgG",4,"vnt.",115,{"$f":"IF(ISBLANK(E254),\"\", PRODUCT(C254,E254))","v":460}]
["14.13.1.","ne mažiau kaip 2 mėginiai per metus"]
["14.14.","H. pylori IgG",4,"vnt.",116,{"$f":"IF(ISBLANK(E256),\"\", PRODUCT(C256,E256))","v":464}]
["14.14.1.","ne mažiau kaip 2 mėginiai per metus"]
["14.15.","Erkinio encefalito viruso IgG, IgM",4,"vnt.",141,{"$f":"IF(ISBLANK(E258),\"\", PRODUCT(C258,E258))","v":564}]
["14.15.1.","ne mažiau kaip 2 mėginiai per metus"]
["14.16.","Nemokamas dalyvio serifikatas visai pirkimo daliai",3,"vnt.",0,{"$f":"IF(ISBLANK(E260),\"\", PRODUCT(C260,E260))","v":0}]
[null,null,null,null,"Suma be PVM",{"$f":"IF((COUNT(C230:C260)<>COUNT(F230:F260)),\"\", SUM(F230:F260))","v":8452},{"$f":"IF((COUNT(C230:C260)<>COUNT(F230:F260)),\"Neužpildytos visų objektų kainos\", \"\")","v":""}]
[null,null,"Taikomas PVM dydis (%)",21,"PVM suma",{"$f":"IF(OR(F261=\"\",D262=\"\"),\"\", PRODUCT(D262,F261)/100)","v":1774.92},{"$f":"IF(D262=\"\", \"Nurodykite taikomą PVM dydį\", \"\")","v":""}]
[null,null,null,null,"Suma su PVM",{"$f":"IF(ISBLANK(F262), \"\", SUM(F261:F262))","v":10226.92}]
[]
[]
[]
["15. DALIS","IŠORINĖ KOKYBĖS KONTROLĖ MIKROBIOLOGIJAI"]
[]
["Tiekėjo pasiūlymas:"]
["Nr.","Pavadinimas","Maksimali apimtis","Mato vienetas","Vieneto įkainis be PVM, Eur","Suma be PVM, Eur"]
["15.","išorinė kokybės kontrolė mikrobiologijai"]
["15.1.","Morfologinis Gramo būdu dažytų tepinėlių tyrimas",4,"vnt.",120,{"$f":"IF(ISBLANK(E272),\"\", PRODUCT(C272,E272))","v":480}]
["15.1.1.","ne mažiau kaip 2 mėginiai per metus"]
["15.1.2.","Nemokamas dalyvio serifikatas"]
["15.2.","bakterijų kultūrų identifikavimas ir jautrumo nustatymas",4,"vnt.",280,{"$f":"IF(ISBLANK(E275),\"\", PRODUCT(C275,E275))","v":1120}]
["15.2.1.","ne mažiau kaip 2 mėginiai per metus"]
["15.2.2.","Nemokamas dalyvio serifikatas"]
[null,null,null,null,"Suma be PVM",{"$f":"IF((COUNT(C272:C277)<>COUNT(F272:F277)),\"\", SUM(F272:F277))","v":1600},{"$f":"IF((COUNT(C272:C277)<>COUNT(F272:F277)),\"Neužpildytos visų objektų kainos\", \"\")","v":""}]
[null,null,"Taikomas PVM dydis (%)",21,"PVM suma",{"$f":"IF(OR(F278=\"\",D279=\"\"),\"\", PRODUCT(D279,F278)/100)","v":336},{"$f":"IF(D279=\"\", \"Nurodykite taikomą PVM dydį\", \"\")","v":""}]
[null,null,null,null,"Suma su PVM",{"$f":"IF(ISBLANK(F279), \"\", SUM(F278:F279))","v":1936}]
[]
[]
[]
["16. DALIS","IŠORINĖ KOKYBĖS KONTROLĖ GLIKUOTAM HEMOGLOBINUI"]
[]
["Tiekėjo pasiūlymas:"]
["Nr.","Pavadinimas","Maksimali apimtis","Mato vienetas","Vieneto įkainis be PVM, Eur","Suma be PVM, Eur"]
["16.","išorinė kokybės kontrolė glikuotam hemoglobinui"]
["16.1.","išorinė kokybės kontrolė glikuotam hemoglobinui",6,"vnt.",97,{"$f":"IF(ISBLANK(E289),\"\", PRODUCT(C289,E289))","v":582}]
["16.1.1.","ne mažiau kaip 2 mėginiai per metus"]
["16.1.2.","Nemokamas dalyvio serifikatas"]
[null,null,null,null,"Suma be PVM",{"$f":"IF((COUNT(C289:C291)<>COUNT(F289:F291)),\"\", SUM(F289:F291))","v":582},{"$f":"IF((COUNT(C289:C291)<>COUNT(F289:F291)),\"Neužpildytos visų objektų kainos\", \"\")","v":""}]
[null,null,"Taikomas PVM dydis (%)",21,"PVM suma",{"$f":"IF(OR(F292=\"\",D293=\"\"),\"\", PRODUCT(D293,F292)/100)","v":122.22},{"$f":"IF(D293=\"\", \"Nurodykite taikomą PVM dydį\", \"\")","v":""}]
[null,null,null,null,"Suma su PVM",{"$f":"IF(ISBLANK(F293), \"\", SUM(F292:F293))","v":704.22}]
[]
[]
[]
["17. DALIS","IŠORINĖ KOKYBĖS KONTROLĖ RF, ACCP, ASO TYRIMAMS"]
[]
["Tiekėjo pasiūlymas:"]
["Nr.","Pavadinimas","Maksimali apimtis","Mato vienetas","Vieneto įkainis be PVM, Eur","Suma be PVM, Eur"]
["17.","išorinė kokybės kontrolė RF, aCCP, ASO tyrimams"]
["17.1.","išorinė kokybės kontrolė RF, aCCP, ASO tyrimams",18,"vnt.",202,{"$f":"IF(ISBLANK(E303),\"\", PRODUCT(C303,E303))","v":3636}]
["17.1.1.","ne mažiau kaip 2 mėginiai per metus"]
["17.1.2.","Nemokamas dalyvio serifikatas"]
[null,null,null,null,"Suma be PVM",{"$f":"IF((COUNT(C303:C305)<>COUNT(F303:F305)),\"\", SUM(F303:F305))","v":3636},{"$f":"IF((COUNT(C303:C305)<>COUNT(F303:F305)),\"Neužpildytos visų objektų kainos\", \"\")","v":""}]
[null,null,"Taikomas PVM dydis (%)",21,"PVM suma",{"$f":"IF(OR(F306=\"\",D307=\"\"),\"\", PRODUCT(D307,F306)/100)","v":763.56},{"$f":"IF(D307=\"\", \"Nurodykite taikomą PVM dydį\", \"\")","v":""}]
[null,null,null,null,"Suma su PVM",{"$f":"IF(ISBLANK(F307), \"\", SUM(F306:F307))","v":4399.5599999999995}]
[]
[]
[]
["18. DALIS","IŠORINĖ KOKYBĖS KONTROLĖ AUTOMATIZUOTAM ENG TYRIMUI"]
[]
["Tiekėjo pasiūlymas:"]
["Nr.","Pavadinimas","Maksimali apimtis","Mato vienetas","Vieneto įkainis be PVM, Eur","Suma be PVM, Eur"]
["18.","išorinė kokybės kontrolė automatizuotam ENG tyrimui"]
["18.1.","išorinė kokybės kontrolė automatizuotam ENG tyrimui",6,"vnt.",null,{"$f":"IF(ISBLANK(E317),\"\", PRODUCT(C317,E317))","v":""}]
["18.1.1.","Westergreno metodas"]
["18.1.2.","ne mažiau kaip 2 mėginiai per metus"]
["18.1.3.","Nemokamas dalyvio serifikatas"]
[null,null,null,null,"Suma be PVM",{"$f":"IF((COUNT(C317:C320)<>COUNT(F317:F320)),\"\", SUM(F317:F320))","v":""},{"$f":"IF((COUNT(C317:C320)<>COUNT(F317:F320)),\"Neužpildytos visų objektų kainos\", \"\")","v":"Neužpildytos visų objektų kainos"}]
[null,null,"Taikomas PVM dydis (%)",null,"PVM suma",{"$f":"IF(OR(F321=\"\",D322=\"\"),\"\", PRODUCT(D322,F321)/100)","v":""},{"$f":"IF(D322=\"\", \"Nurodykite taikomą PVM dydį\", \"\")","v":"Nurodykite taikomą PVM dydį"}]
[null,null,null,null,"Suma su PVM",{"$f":"IF(ISBLANK(F322), \"\", SUM(F321:F322))","v":0}]
[]
[]
[]
["19. DALIS","IŠORINĖ KOKYBĖS KONTROLĖ SIFILIO SEROLOGIJAI"]
[]
["Tiekėjo pasiūlymas:"]
["Nr.","Pavadinimas","Maksimali apimtis","Mato vienetas","Vieneto įkainis be PVM, Eur","Suma be PVM, Eur"]
["19.","išorinė kokybės kontrolė sifilio serologijai"]
["19.1.","išorinė kokybės kontrolė sifilio serologijai",48,"vnt.",null,{"$f":"IF(ISBLANK(E332),\"\", PRODUCT(C332,E332))","v":""}]
["19.1.1.","RPR, TPHA"]
["19.1.2.","ne mažiau kaip 2 mėginiai per metus, 2 veiklos adresai"]
["19.1.3.","Nemokamas dalyvio serifikatas"]
[null,null,null,null,"Suma be PVM",{"$f":"IF((COUNT(C332:C335)<>COUNT(F332:F335)),\"\", SUM(F332:F335))","v":""},{"$f":"IF((COUNT(C332:C335)<>COUNT(F332:F335)),\"Neužpildytos visų objektų kainos\", \"\")","v":"Neužpildytos visų objektų kainos"}]
[null,null,"Taikomas PVM dydis (%)",null,"PVM suma",{"$f":"IF(OR(F336=\"\",D337=\"\"),\"\", PRODUCT(D337,F336)/100)","v":""},{"$f":"IF(D337=\"\", \"Nurodykite taikomą PVM dydį\", \"\")","v":"Nurodykite taikomą PVM dydį"}]
[null,null,null,null,"Suma su PVM",{"$f":"IF(ISBLANK(F337), \"\", SUM(F336:F337))","v":0}]
[]
[]
[]
["20. DALIS","IŠORINĖ KOKYBĖS KONTROLĖ MIKROALBUMINAMS ŠLAPIME"]
[]
["Tiekėjo pasiūlymas:"]
["Nr.","Pavadinimas","Maksimali apimtis","Mato vienetas","Vieneto įkainis be PVM, Eur","Suma be PVM, Eur"]
["20.","išorinė kokybės kontrolė mikroalbuminams šlapime"]
["20.1.","išorinė kokybės kontrolė mikroalbuminams šlapime",6,"vnt.",92,{"$f":"IF(ISBLANK(E347),\"\", PRODUCT(C347,E347))","v":552}]
["20.1.1.","ne mažiau kaip 2 mėginiai per metus"]
["20.1.2.","Nemokamas dalyvio serifikatas"]
[null,null,null,null,"Suma be PVM",{"$f":"IF((COUNT(C347:C349)<>COUNT(F347:F349)),\"\", SUM(F347:F349))","v":552},{"$f":"IF((COUNT(C347:C349)<>COUNT(F347:F349)),\"Neužpildytos visų objektų kainos\", \"\")","v":""}]
[null,null,"Taikomas PVM dydis (%)",21,"PVM suma",{"$f":"IF(OR(F350=\"\",D351=\"\"),\"\", PRODUCT(D351,F350)/100)","v":115.92},{"$f":"IF(D351=\"\", \"Nurodykite taikomą PVM dydį\", \"\")","v":""}]
[null,null,null,null,"Suma su PVM",{"$f":"IF(ISBLANK(F351), \"\", SUM(F350:F351))","v":667.92}]
[]
[]
[]
["21. DALIS","IŠORINĖ KOKYBĖS KONTROLĖ KAPILIARINĖS GLIUKOZĖS TYRIMAMS"]
[]
["Tiekėjo pasiūlymas:"]
["Nr.","Pavadinimas","Maksimali apimtis","Mato vienetas","Vieneto įkainis be PVM, Eur","Suma be PVM, Eur"]
["21.","išorinė kokybės kontrolė kapiliarinės gliukozės tyrimams"]
["21.1.","išorinė kokybės kontrolė kapiliarinės gliukozės tyrimams",48,"vnt.",79,{"$f":"IF(ISBLANK(E361),\"\", PRODUCT(C361,E361))","v":3792}]
["21.1.1.","ne mažiau kaip 2 mėginiai per metus"]
["21.1.2.","Įvairūs gliukozės matuokliai prie ligonio lovos ( Hemoque, on Call Sure, Labtrend,  Biosen C line)"]
["21.1.3.","Nemokamas dalyvio serifikatas"]
[null,null,null,null,"Suma be PVM",{"$f":"IF((COUNT(C361:C364)<>COUNT(F361:F364)),\"\", SUM(F361:F364))","v":3792},{"$f":"IF((COUNT(C361:C364)<>COUNT(F361:F364)),\"Neužpildytos visų objektų kainos\", \"\")","v":""}]
[null,null,"Taikomas PVM dydis (%)",21,"PVM suma",{"$f":"IF(OR(F365=\"\",D366=\"\"),\"\", PRODUCT(D366,F365)/100)","v":796.32},{"$f":"IF(D366=\"\", \"Nurodykite taikomą PVM dydį\", \"\")","v":""}]
[null,null,null,null,"Suma su PVM",{"$f":"IF(ISBLANK(F366), \"\", SUM(F365:F366))","v":4588.32}]
[]
[]
[]
["22. DALIS","IŠORINĖ KOKYBĖS KONTROLĖ AMONIAKO TYRIMUI"]
[]
["Tiekėjo pasiūlymas:"]
["Nr.","Pavadinimas","Maksimali apimtis","Mato vienetas","Vieneto įkainis be PVM, Eur","Suma be PVM, Eur"]
["22.","išorinė kokybės kontrolė amoniako tyrimui"]
["22.1.","išorinė kokybės kontrolė amoniako tyrimui",12,"vnt.",72,{"$f":"IF(ISBLANK(E376),\"\", PRODUCT(C376,E376))","v":864}]
["22.1.1.","ne mažiau kaip 2 mėginiai per metus, du analizatoriai skirtingais veiklos adresais"]
["22.1.2.","Nemokamas dalyvio serifikatas"]
[null,null,null,null,"Suma be PVM",{"$f":"IF((COUNT(C376:C378)<>COUNT(F376:F378)),\"\", SUM(F376:F378))","v":864},{"$f":"IF((COUNT(C376:C378)<>COUNT(F376:F378)),\"Neužpildytos visų objektų kainos\", \"\")","v":""}]
[null,null,"Taikomas PVM dydis (%)",21,"PVM suma",{"$f":"IF(OR(F379=\"\",D380=\"\"),\"\", PRODUCT(D380,F379)/100)","v":181.44},{"$f":"IF(D380=\"\", \"Nurodykite taikomą PVM dydį\", \"\")","v":""}]
[null,null,null,null,"Suma su PVM",{"$f":"IF(ISBLANK(F380), \"\", SUM(F379:F380))","v":1045.44}]
[]
[]
[]
["23. DALIS","IŠORINĖ KOKYBĖS KONTROLĖ PARAZITAI IŠMATOSE"]
[]
["Tiekėjo pasiūlymas:"]
["Nr.","Pavadinimas","Maksimali apimtis","Mato vienetas","Vieneto įkainis be PVM, Eur","Suma be PVM, Eur"]
["23.","išorinė kokybės kontrolė parazitai išmatose"]
["23.1.","išorinė kokybės kontrolė parazitai išmatose",12,"vnt.",156,{"$f":"IF(ISBLANK(E390),\"\", PRODUCT(C390,E390))","v":1872}]
["23.1.1.","ne mažiau kaip 2 mėginiai per metus 2 skirtingais veiklos adresais"]
["23.1.2.","Nemokamas dalyvio serifikatas"]
[null,null,null,null,"Suma be PVM",{"$f":"IF((COUNT(C390:C392)<>COUNT(F390:F392)),\"\", SUM(F390:F392))","v":1872},{"$f":"IF((COUNT(C390:C392)<>COUNT(F390:F392)),\"Neužpildytos visų objektų kainos\", \"\")","v":""}]
[null,null,"Taikomas PVM dydis (%)",21,"PVM suma",{"$f":"IF(OR(F393=\"\",D394=\"\"),\"\", PRODUCT(D394,F393)/100)","v":393.12},{"$f":"IF(D394=\"\", \"Nurodykite taikomą PVM dydį\", \"\")","v":""}]
[null,null,null,null,"Suma su PVM",{"$f":"IF(ISBLANK(F394), \"\", SUM(F393:F394))","v":2265.12}]

{"sheet":"Subtiekėjai ir priedai","index":1,"n_rows":100,"n_cols":11,"rows_kept":100,"cut":false,"hidden":false,"merged":[[47,0,47,9],[52,4,52,9],[50,4,50,9],[52,0,52,3],[50,0,50,3],[38,1,38,6],[37,1,37,6],[36,1,36,6],[35,1,35,6],[43,1,43,6],[42,1,42,6],[41,1,41,6],[40,1,40,6],[39,1,39,6],[32,0,32,9],[34,7,34,9],[34,1,34,6],[45,7,45,9],[42,7,42,9],[37,7,37,9],[36,7,36,9],[35,7,35,9],[44,7,44,9],[43,7,43,9],[41,7,41,9],[40,7,40,9],[39,7,39,9],[38,7,38,9],[45,1,45,6],[44,1,44,6],[1,0,2,10],[30,0,30,9],[14,5,14,7],[8,5,8,7],[7,5,7,7],[6,5,6,7],[14,8,14,9],[8,8,8,9],[7,8,7,9],[6,8,6,9],[14,0,14,1],[8,0,8,1],[7,0,7,1],[6,0,6,1],[14,2,14,4],[8,2,8,4],[7,2,7,4],[9,8,9,9],[6,2,6,4],[5,2,5,4],[5,8,5,9],[4,8,4,9],[4,5,4,7],[4,2,4,4],[4,0,4,1],[5,5,5,7],[5,0,5,1],[9,0,9,1],[13,2,13,4],[12,2,12,4],[11,2,11,4],[10,2,10,4],[9,2,9,4],[13,5,13,7],[12,5,12,7],[11,5,11,7],[10,5,10,7],[9,5,9,7],[16,0,16,10],[18,8,18,9],[18,5,18,7],[18,2,18,4],[18,0,18,1],[13,0,13,1],[12,0,12,1],[11,0,11,1],[10,0,10,1],[13,8,13,9],[12,8,12,9],[11,8,11,9],[10,8,10,9],[23,8,23,9],[22,8,22,9],[21,8,21,9],[20,8,20,9],[19,8,19,9],[28,8,28,9],[27,8,27,9],[26,8,26,9],[25,8,25,9],[24,8,24,9],[23,5,23,7],[22,5,22,7],[21,5,21,7],[20,5,20,7],[19,5,19,7],[28,5,28,7],[27,5,27,7],[26,5,26,7],[25,5,25,7],[24,5,24,7],[23,2,23,4],[22,2,22,4],[21,2,21,4],[20,2,20,4],[19,2,19,4],[28,2,28,4],[27,2,27,4],[26,2,26,4],[25,2,25,4],[24,2,24,4],[23,0,23,1],[22,0,22,1],[21,0,21,1],[20,0,20,1],[19,0,19,1],[28,0,28,1],[27,0,27,1],[26,0,26,1],[25,0,25,1],[24,0,24,1]]}
[]
["Ūkio subjektai (įskaitant kvazisubtiekėjus - fiziniai asmenys, kuriuos ketinama įdarbinti pirkimo laimėjimo atveju), kurių pajėgumais tiekėjas remiasi, kad atitiktų keliamus kvalifikacijos reikalavimus:"]
[]
[]
["Pavadinimas*",null,"Kodas, adresas",null,null,"Perduodami įsipareigojimai",null,null,"Perduodamų įsipareigojimų dalis nuo visos pirkimo sutarties (Eur arba %)",null,"Kval. Reikalavimo Nr."]
[]
[]
[]
[]
[]
[]
[]
[]
[]
[]
[]
["Subtiekėjams / subteikėjams / subrangovams numatomos perduoti veiklos (privaloma nurodyti) ir šių ūkio subjektų pavadinimai (jei žinomi):"]
[]
["Pavadinimas",null,"Kodas, adresas",null,null,"Perduodama veikla*",null,null,"Perduodamos veiklos dalis nuo visos pirkimo sutarties (Eur arba %)"]
[]
[]
[]
[]
[]
[]
[]
[]
[]
[]
[]
[]
[]
["Kartu su pasiūlymu pateikiami šie dokumentai:"]
[]
["Nr.","Dokumento  pavadinimas",null,null,null,null,null,"Dokumentas yra konfidencialus? Taip/Ne"]
["1","Jungtinės veiklos kopija (jei taikoma)",null,null,null,null,null,"--"]
["2","Europos bendrasis viešųjų pirkimų dokumentas",null,null,null,null,null,"Ne"]
["3","Subtiekimo sutartis, ketinimų protokolas, preliminarios sutartys ar kiti dokumentai, patvirtinantys, kad laimėjus pirkimą tiekėjui bus prieinami kitų ūkio subjektų ištekliai (jei pasitelkiami kvalifikacijos atitikimui)",null,null,null,null,null,"--"]
[4,"Techninė dokumentacija.zip",null,null,null,null,null,"Ne"]
[5,"Kvalifikacijos dokumentai.zip",null,null,null,null,null,"Ne"]
[]
[]
[]
[]
[]
[]
[]
["Pasiūlyme nurodyta Prekės kaina, išskyrus jos sudedamąsias dalis, subtiekėjai, taip pat kita informacija, kuri teisės aktų nustatyta tvarka turi būti skelbiama arba kitokiu būdu viešai prieinama visuomenei, nėra laikoma konfidencialia informacija. Konfidencialią informaciją sudaro, visų pirma, komercinė (gamybinė) paslaptis ir konfidencialieji pasiūlymų aspektai. Informacija, kurią viešai skelbti įpareigoja Lietuvos Respublikos įstatymai, negali būti tiekėjo nurodoma kaip konfidenciali, todėl, tiekėjui nurodžius tokią informaciją kaip konfidencialią, perkančioji organizacija turi teisę ją skelbti. Jei tiekėjas nenurodo konfidencialios informacijos, laikoma, kad konfidencialios informacijos tiekėjo pasiūlyme nėra. Vadovaujantis Informacijos viešinimo Centrinėje viešųjų pirkimų informacinėje sistemoje tvarkos aprašu, patvirtintu Viešųjų pirkimų tarnybos direktoriaus 2017 m. birželio 19 d. įsakymu Nr. 1S-91 „Dėl Informacijos viešinimo Centrinėje viešųjų pirkimų informacinėje sistemoje tvarkos aprašo patvirtinimo“, perkančioji organizacija laimėjusio dalyvio pasiūlymą, išskyrus informaciją, kurią tiekėjas nurodė kaip konfidencialią, paskelbs CVP IS."]
[]
[]
["Tiekėjo arba jo įgalioto asmens pareigų pavadinimas:",null,null,null,"Direktorius"]
[]
["Pasirašančio asmens vardas ir pavardė:",null,null,null,"Andrius Rubčinskas"]
[]
[]
[]
[]
[]
[]
[]
[]
[]
[]
[]
[]
[]
[]
[]
[]
[]
[]
[]
[]
[]
[]
[]
[]
[]
[]
[]
[]
[]
[]
[]
[]
[]
[]
[]
[]
[]
[]
[]
[]
[]
[]
[]
[]
[]
[]
["7855 2023-03-02 15:48:53"]